bitfinex-derivatives/quotes_BNBF0:USTF0_20250315
["timestamp","ask_amount","ask_price","bid_price","bid_amount"]
[1742050073732,0.26684445,600.41,598.88,1.146]
[1742050074829,0.3331168,600.39,598.88,1.146]
[1742050075027,0.26684445,600.38,598.88,1.146]
[1742050075227,0.33313345,600.36,598.88,1.146]
[1742050075424,0.26684445,600.35,598.88,1.146]
[1742050075726,0.3331501,600.33,598.88,1.146]
[1742050075932,0.26684445,600.32,598.88,1.146]
[1742050076231,0.33316674,600.3,598.88,1.146]
[1742050076732,0.26684445,600.29,598.88,1.146]
[1742050076931,0.3331834,600.27,598.88,1.146]
[1742050077125,0.26684445,600.26,598.88,1.146]
[1742050077331,0.33320005,600.24,598.88,1.146]
[1742050077530,0.26684445,600.23,598.88,1.146]
[1742050077727,0.3332167,600.21,598.88,1.146]
[1742050077931,0.26684445,600.2,598.88,1.146]
[1742050078227,0.33322781,600.19,598.88,1.146]
[1742050078425,0.26684445,600.18,598.88,1.146]
[1742050078636,0.33323891,600.17,598.88,1.146]
[1742050078932,0.26684445,600.16,598.88,1.146]
[1742050079134,0.33325002,600.15,598.88,1.146]
[1742050079329,0.26684445,600.14,598.88,1.146]
[1742050080231,0.33326112,600.13,598.88,1.146]
[1742050080427,0.26684445,600.12,598.88,1.146]
[1742050080625,0.33327223,600.11,598.88,1.146]
[1742050080831,0.26676175,600.1,598.88,1.146]
[1742050081027,0.33328334,600.09,598.88,1.146]
[1742050081229,0.26676175,600.08,598.88,1.146]
[1742050081432,0.33329444,600.07,598.88,1.146]
[1742050081826,0.26676175,600.06,598.88,1.146]
[1742050082032,0.33330555,600.05,598.88,1.146]
[1742050082333,0.26676737,600.04,598.88,1.146]
[1742050082527,0.33331666,600.03,598.88,1.146]
[1742050082733,0.26676737,600.02,598.89,1.128]
[1742050085829,0.26676737,600.02,598.9,0.94]
[1742050088236,0.26683439,600.02,598.9,2.191]
[1742050088436,0.26683439,600.02,598.9,3.286]
[1742050089230,0.26683439,600.02,598.91,0.30659093]
[1742050089631,0.26683439,600.02,598.9,3.286]
[1742050090841,0.33332777,600.01,598.9,3.286]
[1742050091139,0.26683439,600.0,598.9,3.286]
[1742050091339,0.33333888,599.99,598.9,3.286]
[1742050091538,0.26683439,599.98,598.9,3.286]
[1742050091739,0.60017883,599.98,598.9,3.286]
[1742050091939,0.26683439,599.97,598.9,3.286]
[1742050092235,0.26683439,599.97,598.9,3.471]
[1742050092440,0.26683439,599.97,598.9,4.448]
[1742050093242,0.33334444,599.98,598.9,4.448]
[1742050093439,0.2668876,599.97,598.9,4.448]
[1742050096741,0.33334444,599.98,598.9,4.448]
[1742050096942,0.26688852,599.97,598.9,4.448]
[1742050097442,0.33334444,599.98,598.9,4.448]
[1742050097642,0.26688836,599.97,598.9,4.448]
[1742050100851,0.26690404,599.96,598.9,4.448]
[1742050101049,0.26690404,599.97,598.9,4.448]
[1742050101248,0.26690404,599.96,598.9,4.448]
[1742050101442,0.26690404,599.97,598.9,4.448]
[1742050101646,0.26690404,599.96,598.9,5.351]
[1742050101845,0.26690404,599.97,598.9,5.351]
[1742050102042,0.26690404,599.96,598.9,5.351]
[1742050102248,0.26690404,599.95,598.9,5.351]
[1742050102447,0.33334444,599.98,598.9,5.351]
[1742050102648,0.26689486,599.97,598.9,5.351]
[1742050104146,0.33334444,599.98,598.9,5.351]
[1742050104345,0.26688755,599.97,598.9,5.351]
[1742050104547,0.33334444,599.98,598.9,5.351]
[1742050105850,0.33334444,599.98,598.9,6.777]
[1742050114864,0.26685111,599.97,598.9,6.777]
[1742050115564,0.33334444,599.98,598.9,6.777]
[1742050115759,0.26686054,599.97,598.9,6.777]
[1742050118861,0.33334444,599.98,598.9,6.777]
[1742050119066,0.26685672,599.97,598.9,6.777]
[1742050120863,0.26685672,599.97,598.91,0.30657977]
[1742050121061,0.26685672,599.97,598.9,3.343]
[1742050121262,0.26685672,599.97,598.9,2.403]
[1742050123366,0.26685672,599.97,598.9,3.879]
[1742050123771,0.26685672,599.97,598.91,0.30657952]
[1742050124469,0.26685672,599.97,598.91,1.92257952]
[1742050124672,0.26685672,599.97,598.91,3.1]
[1742050125372,0.26685672,599.97,598.91,4.607]
[1742050126272,0.2668604,599.96,598.91,4.607]
[1742050126470,0.2668604,599.97,598.91,4.607]
[1742050126668,0.2668604,599.96,598.92,0.30657995]
[1742050127069,0.2668604,599.95,598.92,0.30657995]
[1742050127373,0.2668604,599.94,598.92,0.30657995]
[1742050127569,0.2668604,599.97,598.92,0.30657995]
[1742050127873,0.2668604,599.96,598.92,0.30657995]
[1742050128275,0.2668604,599.95,598.92,0.30657995]
[1742050128470,0.2668604,599.97,598.92,0.30657995]
[1742050134981,0.2668604,599.97,598.91,4.607]
[1742050135679,0.2668604,599.97,598.91,5.594]
[1742050139082,0.33334444,599.98,598.91,5.594]
[1742050139383,0.26686049,599.97,598.91,5.594]
[1742050142284,0.33334444,599.98,598.91,5.594]
[1742050142484,0.26690722,599.97,598.91,5.594]
[1742050147790,0.33335555,599.96,598.91,5.594]
[1742050147990,0.26690722,599.95,598.91,5.594]
[1742050149688,0.33336667,599.94,598.91,5.594]
[1742050149888,0.26690722,599.93,598.91,5.594]
[1742050150487,0.26690722,599.93,598.91,6.762]
[1742050151794,0.33337778,599.92,598.91,6.762]
[1742050151986,0.26690722,599.91,598.91,6.762]
[1742050152186,0.33338889,599.9,598.91,6.762]
[1742050152491,0.26690722,599.89,598.91,6.762]
[1742050153289,0.33338889,599.9,598.91,6.762]
[1742050153486,0.26693339,599.89,598.91,6.762]
[1742050154291,0.33338889,599.9,598.91,6.762]
[1742050154493,0.26695194,599.89,598.91,6.762]
[1742050154693,0.33340001,599.88,598.91,6.762]
[1742050154892,0.26692623,599.87,598.91,6.762]
[1742050155093,0.33341112,599.86,598.91,6.762]
[1742050155489,0.26692623,599.85,598.91,6.762]
[1742050155685,0.33342224,599.84,598.91,7.726]
[1742050155890,0.26692623,599.83,598.91,7.726]
[1742050158394,0.33343336,599.82,598.91,7.726]
[1742050158593,0.26692623,599.81,598.91,7.726]
[1742050158791,0.33344448,599.8,598.91,7.726]
[1742050158995,0.26703494,599.79,598.91,7.726]
[1742050159596,0.3334556,599.78,598.91,7.726]
[1742050159796,0.26703494,599.77,598.91,7.726]
[1742050159994,0.33346672,599.76,598.91,7.726]
[1742050160196,0.26703494,599.75,598.91,7.726]
[1742050162493,0.33346672,599.76,598.91,7.726]
[1742050162699,0.26703053,599.75,598.91,7.726]
[1742050166203,0.33346672,599.76,598.91,7.726]
[1742050166400,0.26700752,599.75,598.91,7.726]
[1742050169905,0.33346672,599.76,598.91,7.726]
[1742050170103,0.26700266,599.75,598.91,7.726]
[1742050173900,0.26700055,599.74,598.91,7.726]
[1742050174207,0.33346672,599.76,598.91,7.726]
[1742050174208,0.26700055,599.75,598.91,7.726]
[1742050174508,0.26700055,599.74,598.91,7.726]
[1742050174705,0.26700055,599.75,598.91,7.726]
[1742050174904,0.26700055,599.74,598.91,7.726]
[1742050175206,0.26700055,599.75,598.91,7.726]
[1742050175503,0.26700055,599.74,598.91,7.726]
[1742050175708,0.26700055,599.75,598.91,7.726]
[1742050177409,0.33346672,599.76,598.91,7.726]
[1742050177709,0.26700418,599.75,598.91,7.726]
[1742050179206,0.33346672,599.76,598.91,7.726]
[1742050179407,0.26700021,599.75,598.91,7.726]
[1742050190617,0.33346672,599.76,598.91,7.726]
[1742050190813,0.2669762,599.75,598.91,7.726]
[1742050199319,0.26696168,599.74,598.91,7.726]
[1742050199524,0.26696168,599.73,598.91,7.726]
[1742050199719,0.26696168,599.75,598.91,7.726]
[1742050199921,0.26696596,599.74,598.91,7.726]
[1742050200122,0.26696596,599.73,598.91,7.726]
[1742050200422,0.26696596,599.72,598.91,7.726]
[1742050200622,0.26696596,599.75,598.91,7.726]
[1742050202622,0.33346672,599.76,598.91,7.726]
[1742050204428,0.26704574,599.75,598.91,7.726]
[1742050204728,0.33347784,599.74,598.91,7.726]
[1742050204927,0.26704574,599.73,598.91,7.726]
[1742050207229,0.33348896,599.72,598.91,7.726]
[1742050209535,0.26695837,599.71,598.91,7.726]
[1742050209736,0.33350008,599.7,598.91,7.726]
[1742050211542,0.26695454,599.69,598.91,7.726]
[1742050211837,0.3335112,599.68,598.91,7.726]
[1742050212036,0.26695454,599.67,598.91,7.726]
[1742050212241,0.33352232,599.66,598.91,7.726]
[1742050213547,0.26690512,599.65,598.91,7.726]
[1742050214146,0.33352232,599.66,598.91,7.726]
[1742050214346,0.26691746,599.65,598.91,7.726]
[1742050214741,0.33352232,599.66,598.91,7.726]
[1742050215146,0.2669113,599.65,598.91,7.726]
[1742050216045,0.26690358,599.64,598.91,7.726]
[1742050216245,0.26690358,599.65,598.91,7.726]
[1742050216442,0.33352232,599.66,598.91,7.726]
[1742050216645,0.26688435,599.65,598.91,7.726]
[1742050219848,0.33352232,599.66,598.91,7.726]
[1742050220050,0.26687212,599.65,598.91,7.726]
[1742050221651,0.33352232,599.66,598.91,7.726]
[1742050221851,0.26687021,599.65,598.91,7.726]
[1742050223550,0.33353345,599.64,598.91,7.726]
[1742050223849,0.26687021,599.63,598.91,7.726]
[1742050224051,0.33354457,599.62,598.91,7.726]
[1742050224351,0.26687021,599.61,598.91,7.726]
[1742050225052,0.3335557,599.6,598.91,7.726]
[1742050225347,0.26687021,599.59,598.91,7.726]
[1742050225551,0.33356683,599.58,598.91,7.726]
[1742050225850,0.26687021,599.57,598.91,7.726]
[1742050226052,0.33357795,599.56,598.91,7.726]
[1742050226245,0.26687021,599.55,598.91,7.726]
[1742050232453,0.26655774,599.54,598.91,7.726]
[1742050232654,0.26655774,599.55,598.91,7.726]
[1742050235559,0.26654203,599.54,598.91,7.726]
[1742050235754,0.26654203,599.55,598.91,7.726]
[1742050236054,0.26654203,599.54,598.91,7.726]
[1742050236254,0.26654203,599.55,598.91,7.726]
[1742050236458,0.26654203,599.54,598.91,7.726]
[1742050236659,0.26654203,599.53,598.91,7.726]
[1742050236854,0.33357795,599.56,598.91,7.726]
[1742050237055,0.26653988,599.55,598.91,7.726]
[1742050245167,0.6001234,599.55,598.91,7.726]
[1742050245467,0.26653988,599.54,598.91,7.726]
[1742050245966,0.60012896,599.54,598.91,7.726]
[1742050246165,0.26653988,599.53,598.91,7.726]
[1742050247967,0.33358908,599.54,598.91,7.726]
[1742050248159,0.26645282,599.53,598.91,7.726]
[1742050249967,0.33360021,599.52,598.91,7.726]
[1742050250168,0.26645282,599.51,598.91,7.726]
[1742050254672,0.33361134,599.5,598.91,7.726]
[1742050254879,0.26645282,599.49,598.91,7.726]
[1742050255079,0.33362247,599.48,598.91,7.726]
[1742050255278,0.26645282,599.47,598.91,7.726]
[1742050255480,0.33362247,599.48,598.91,7.726]
[1742050255678,0.2663563,599.47,598.91,7.726]
[1742050255974,0.3336336,599.46,598.91,7.726]
[1742050256178,0.2663563,599.45,598.91,7.726]
[1742050256378,0.33364473,599.44,598.91,7.726]
[1742050256577,0.2663563,599.43,598.91,6.242]
[1742050256777,0.33365586,599.42,598.13,0.29060785]
[1742050256975,0.2663563,599.41,598.13,0.29060785]
[1742050257179,0.333667,599.4,597.17,1.23763657]
[1742050257379,0.2663563,599.39,598.08,0.29084345]
[1742050257679,0.33367813,599.38,597.28,0.33485132]
[1742050257879,0.2663563,599.37,598.08,0.29083251]
[1742050258073,0.33368926,599.36,597.28,0.33485132]
[1742050258278,0.2663563,599.35,597.29,0.30699528]
[1742050258479,0.3337004,599.34,597.39,0.33478966]
[1742050258676,0.2663563,599.33,597.4,0.30699528]
[1742050258879,0.33371153,599.32,597.42,0.33477285]
[1742050259080,0.2663563,599.31,597.43,0.30699528]
[1742050259282,0.33372267,599.3,597.45,0.33475604]
[1742050259583,0.2663563,599.29,597.46,0.30699528]
[1742050259780,0.33373381,599.28,597.48,0.33473923]
[1742050259977,0.2663563,599.27,597.49,0.30699528]
[1742050260181,0.33374495,599.26,597.51,0.33472243]
[1742050260382,0.2663563,599.25,597.52,0.30699528]
[1742050260582,0.33375609,599.24,597.54,0.33470562]
[1742050260981,0.26625194,599.23,597.55,0.30706754]
[1742050261181,0.33376723,599.22,597.57,0.33468882]
[1742050261382,0.26625194,599.21,597.58,0.30706754]
[1742050261579,0.33377837,599.2,597.6,0.33467202]
[1742050261880,0.26625194,599.19,597.61,0.30706754]
[1742050262083,0.33378951,599.18,597.63,0.33465522]
[1742050262278,0.26625194,599.17,597.64,0.30706754]
[1742050262484,0.26625194,599.17,597.66,0.33463842]
[1742050262684,0.26625194,599.17,597.67,0.30706754]
[1742050262983,0.26625194,599.17,597.69,0.33462162]
[1742050264284,0.26625194,599.17,597.7,0.30704855]
[1742050264483,0.26625194,599.17,597.71,0.33461042]
[1742050265383,0.26625194,599.17,597.72,0.30707978]
[1742050265878,0.26625194,599.17,597.73,0.33459923]
[1742050266083,0.33380065,599.16,597.73,0.33459923]
[1742050266283,0.26623786,599.15,597.74,0.30708014]
[1742050266483,0.33381179,599.14,597.75,0.33458803]
[1742050266679,0.26623786,599.13,597.76,0.30708014]
[1742050266883,0.33382294,599.12,597.77,0.33457684]
[1742050267084,0.26623786,599.11,597.78,0.30708014]
[1742050267279,0.33383408,599.1,597.79,0.33456565]
[1742050267580,0.26623786,599.09,597.8,0.30708014]
[1742050267784,0.26623786,599.09,597.8,0.64164019]
[1742050267986,0.26623786,599.09,597.81,0.30708014]
[1742050273586,0.26623786,599.09,597.82,0.33454886]
[1742050273792,0.33383408,599.1,597.82,0.33454886]
[1742050273992,0.26628952,599.09,597.83,0.30706913]
[1742050274193,0.26628952,599.09,597.84,0.33453766]
[1742050274492,0.26628952,599.09,597.85,0.30706913]
[1742050275193,0.26628952,599.09,597.84,0.33453766]
[1742050275492,0.33383408,599.1,597.84,0.33453766]
[1742050275698,0.26626056,599.09,597.84,0.33453766]
[1742050277294,0.26626056,599.09,597.85,0.185]
[1742050277802,0.26626056,599.09,597.86,1.03]
[1742050278201,0.33384522,599.08,597.86,1.03]
[1742050278403,0.26626056,599.07,597.86,1.03]
[1742050278902,0.33385637,599.06,597.86,1.03]
[1742050279099,0.26626056,599.05,597.86,1.03]
[1742050279301,0.33386752,599.04,597.86,1.03]
[1742050279504,0.26626056,599.03,597.86,1.03]
[1742050279801,0.33388424,599.01,597.86,1.03]
[1742050280002,0.26626056,599.0,597.86,1.03]
[1742050280597,0.26626056,598.99,597.86,1.03]
[1742050280802,0.26626056,598.98,597.86,1.03]
[1742050281006,0.26626056,598.97,597.86,1.03]
[1742050281203,0.60017267,598.96,597.86,1.03]
[1742050281403,0.33392326,598.94,597.86,1.03]
[1742050281602,0.26626056,598.93,597.86,1.03]
[1742050281801,0.33393999,598.91,597.86,1.03]
[1742050281997,0.26626056,598.9,597.86,1.03]
[1742050282303,0.33395671,598.88,597.86,1.03]
[1742050282604,0.26626056,598.87,597.86,1.03]
[1742050282802,0.33397344,598.85,597.86,1.03]
[1742050283104,0.26626056,598.84,597.86,1.03]
[1742050284299,0.33399018,598.82,597.86,1.03]
[1742050284505,0.26626056,598.81,597.87,1.225]
[1742050284703,0.33400691,598.79,597.87,1.225]
[1742050284905,0.26626056,598.78,597.87,1.225]
[1742050285100,0.33402364,598.76,597.87,1.225]
[1742050285301,0.33402364,598.76,597.88,1.43]
[1742050285502,0.26626056,598.75,597.88,1.43]
[1742050285701,0.33404038,598.73,597.88,1.43]
[1742050285897,0.26626056,598.72,597.88,1.43]
[1742050286101,0.33405712,598.7,597.88,1.43]
[1742050286398,0.26626056,598.69,597.88,1.43]
[1742050286605,0.33407386,598.67,597.88,1.43]
[1742050286802,0.26626056,598.66,597.88,1.43]
[1742050287000,0.33408502,598.65,597.88,1.43]
[1742050287197,0.26626056,598.64,597.88,1.43]
[1742050287405,0.33409618,598.63,597.88,1.43]
[1742050287606,0.26626056,598.62,597.88,1.43]
[1742050287900,0.33410734,598.61,597.88,1.43]
[1742050288106,0.26626056,598.6,597.89,1.761]
[1742050288301,0.33411851,598.59,597.89,1.761]
[1742050288605,0.26626056,598.58,597.89,1.761]
[1742050288805,0.33412967,598.57,597.89,1.761]
[1742050289005,0.26626056,598.56,597.89,1.761]
[1742050289207,0.33414084,598.55,597.89,1.761]
[1742050289507,0.26626056,598.54,597.89,1.761]
[1742050289706,0.334152,598.53,597.89,1.761]
[1742050289906,0.26626056,598.52,597.89,1.761]
[1742050290101,0.33416317,598.51,597.89,1.761]
[1742050290403,0.26626056,598.5,597.89,1.761]
[1742050290598,0.33417433,598.49,597.89,1.761]
[1742050291507,0.26577645,598.48,597.89,1.761]
[1742050291703,0.3341855,598.47,597.89,1.761]
[1742050291908,0.26577645,598.46,597.89,1.761]
[1742050292305,0.33419667,598.45,597.89,1.761]
[1742050293808,0.33419667,598.45,597.9,1.345]
[1742050294007,0.26578961,598.44,597.9,1.345]
[1742050294209,0.33420784,598.43,597.9,1.345]
[1742050294411,0.26578961,598.42,597.9,1.345]
[1742050294804,0.33421901,598.41,597.9,1.345]
[1742050295002,0.26578961,598.4,597.9,1.345]
[1742050295204,0.33423018,598.39,597.9,1.345]
[1742050295408,0.26578961,598.38,597.9,1.345]
[1742050295603,0.33424135,598.37,597.9,1.345]
[1742050296008,0.26575922,598.36,597.9,1.345]
[1742050296307,0.33425252,598.35,597.9,1.345]
[1742050296511,0.26575922,598.34,597.9,1.345]
[1742050297412,0.3342637,598.33,597.9,1.345]
[1742050297611,0.26575922,598.32,597.9,1.345]
[1742050297812,0.6000285,598.32,597.9,1.345]
[1742050298012,0.26575922,598.31,597.9,1.345]
[1742050299811,0.60003409,598.31,597.9,1.345]
[1742050300116,0.26575922,598.3,597.9,1.345]
[1742050305919,0.33427487,598.31,597.9,1.345]
[1742050306517,0.2657424,598.3,597.9,1.345]
[1742050307212,0.26574454,598.29,597.9,1.345]
[1742050307412,0.26574454,598.3,597.9,1.345]
[1742050308714,0.33427487,598.31,597.9,1.345]
[1742050308917,0.26575446,598.3,597.9,1.345]
[1742050309517,0.26575401,598.29,597.9,1.345]
[1742050309713,0.26575401,598.3,597.9,1.345]
[1742050309913,0.26575401,598.29,597.9,1.345]
[1742050310118,0.26575401,598.3,597.9,1.345]
[1742050310318,0.26575401,598.29,597.9,1.345]
[1742050310619,0.26575401,598.28,597.9,1.345]
[1742050310819,0.26575599,598.27,597.9,1.345]
[1742050311020,0.26575599,598.26,597.9,1.345]
[1742050311322,0.26575599,598.25,597.9,1.345]
[1742050311521,0.26575599,598.24,597.9,1.345]
[1742050311721,0.26575599,598.3,597.9,1.345]
[1742050312818,0.33427487,598.31,597.9,1.345]
[1742050313021,0.26575283,598.3,597.9,1.345]
[1742050313923,0.26575283,598.3,597.76,6.282]
[1742050316323,0.26573104,598.29,597.76,6.282]
[1742050316623,0.26573104,598.28,597.76,6.282]
[1742050316822,0.26573104,598.3,597.76,6.282]
[1742050318223,0.33427487,598.31,597.76,6.282]
[1742050318424,0.26569466,598.3,597.76,6.282]
[1742050321427,0.33427487,598.31,597.76,6.282]
[1742050321627,0.26570503,598.3,597.76,6.282]
[1742050329827,0.26570503,598.3,597.76,6.097]
[1742050331532,0.26570503,598.3,597.77,0.185]
[1742050336237,0.33427487,598.31,597.77,0.185]
[1742050336438,0.26572377,598.3,597.77,0.185]
[1742050346245,0.33427487,598.31,597.77,0.185]
[1742050346544,0.26566377,598.3,597.77,0.185]
[1742050346945,0.33428604,598.29,597.77,0.185]
[1742050349744,0.26562334,598.28,597.77,0.185]
[1742050350046,0.33429722,598.27,597.77,0.185]
[1742050350249,0.26562334,598.26,597.77,0.185]
[1742050350548,0.33430839,598.25,597.77,0.185]
[1742050350743,0.26562334,598.24,597.77,0.185]
[1742050350943,0.33431957,598.23,597.77,0.185]
[1742050351543,0.26561996,598.22,597.77,0.185]
[1742050351743,0.33433075,598.21,597.77,0.185]
[1742050351950,0.26561996,598.2,597.77,0.185]
[1742050352252,0.5999563,598.2,597.77,0.185]
[1742050352550,0.26561996,598.19,597.77,0.185]
[1742050353451,0.26561996,598.19,597.76,5.565]
[1742050356753,0.33434752,598.18,597.76,5.565]
[1742050356954,0.26561996,598.17,597.76,5.565]
[1742050357154,0.3343587,598.16,597.76,3.901]
[1742050357456,0.26561996,598.15,597.76,3.901]
[1742050357656,0.59998424,598.15,597.76,3.901]
[1742050357854,0.26561996,598.14,597.76,3.901]
[1742050358950,0.26559673,598.13,597.76,3.901]
[1742050359155,0.33436428,598.15,597.76,3.901]
[1742050359156,0.26559673,598.12,597.76,3.901]
[1742050359351,0.26559673,598.11,597.76,3.901]
[1742050359553,0.26559673,598.14,597.76,3.901]
[1742050359749,0.26559673,598.13,597.76,3.901]
[1742050359954,0.59997779,598.12,597.76,3.901]
[1742050360150,0.59998338,598.11,597.76,3.901]
[1742050360455,0.59998897,598.1,597.76,2.606]
[1742050360659,0.33439224,598.1,597.76,2.606]
[1742050360857,0.26562045,598.09,597.76,2.606]
[1742050362252,0.60001828,598.09,597.76,2.606]
[1742050362454,0.26562045,598.08,597.76,2.606]
[1742050366459,0.26555914,598.07,597.76,2.606]
[1742050366758,0.26555914,598.06,597.76,2.606]
[1742050366958,0.26555914,598.08,597.76,2.606]
[1742050368959,0.26555429,598.07,597.76,2.606]
[1742050369160,0.26555429,598.08,597.76,2.606]
[1742050369361,0.26555429,598.07,597.76,1.455]
[1742050369567,0.33439783,598.09,597.76,1.455]
[1742050369568,0.26555429,598.08,597.76,1.455]
[1742050369759,0.26555429,598.07,597.76,1.455]
[1742050369956,0.26555429,598.06,597.76,1.455]
[1742050370155,0.26555429,598.08,597.76,1.455]
[1742050370356,0.26555429,598.07,597.76,1.455]
[1742050370555,0.26555429,598.08,597.76,1.455]
[1742050370761,0.26555429,598.07,597.76,1.455]
[1742050370956,0.26555429,598.08,597.76,1.455]
[1742050371159,0.26555429,598.07,597.76,1.455]
[1742050371356,0.26555429,598.08,597.76,1.455]
[1742050372062,0.33439783,598.09,597.76,1.455]
[1742050372361,0.26558256,598.08,597.76,1.455]
[1742050374364,0.33439783,598.09,597.76,1.455]
[1742050374568,0.26563132,598.08,597.76,1.455]
[1742050377764,0.26564053,598.07,597.76,1.455]
[1742050378068,0.33439783,598.09,597.76,1.455]
[1742050378069,0.26564053,598.06,597.76,1.455]
[1742050378465,0.26564053,598.05,597.76,1.455]
[1742050378767,0.26564053,598.04,597.76,1.455]
[1742050379066,0.26564053,598.08,597.76,1.455]
[1742050379271,0.33439783,598.09,597.76,1.455]
[1742050379471,0.26559987,598.08,597.76,1.455]
[1742050383674,0.26559987,598.07,597.76,1.455]
[1742050383878,0.26559987,598.74,597.76,1.455]
[1742050384075,0.2655833,598.73,597.76,1.455]
[1742050384271,0.2655833,598.72,597.76,1.455]
[1742050384574,0.2655833,598.71,597.76,1.455]
[1742050384777,0.2655833,598.7,597.76,1.455]
[1742050384971,0.2655833,598.74,597.76,1.455]
[1742050385171,0.2655833,598.73,597.76,1.455]
[1742050385374,0.2655833,598.72,597.76,1.455]
[1742050385569,0.29110742,598.72,597.76,1.455]
[1742050385772,0.2655833,598.71,597.59,0.933]
[1742050386372,0.2655833,598.7,597.6,1.014]
[1742050386579,0.29112812,598.7,597.6,1.014]
[1742050386777,0.26557453,598.69,597.6,1.014]
[1742050387077,0.26557453,598.68,597.6,1.014]
[1742050387376,0.26557453,598.67,597.61,1.162]
[1742050387576,0.26557453,598.66,597.61,1.162]
[1742050387773,0.26557453,598.65,597.61,1.162]
[1742050387976,0.26557453,598.64,597.61,1.162]
[1742050388177,2.52344887,598.61,597.62,0.934]
[1742050388472,0.26557453,598.6,597.62,0.934]
[1742050388673,0.26557453,598.59,597.62,0.934]
[1742050388872,0.26557453,598.58,597.62,0.934]
[1742050389075,0.26557453,598.57,597.62,0.934]
[1742050389277,0.26557453,598.56,597.62,0.934]
[1742050389476,0.26557453,598.55,597.62,0.934]
[1742050389672,0.26557453,598.6,597.62,0.934]
[1742050389979,0.26557453,598.59,597.62,0.934]
[1742050390282,0.26569628,598.58,597.62,0.934]
[1742050390477,0.26569628,598.57,597.62,0.934]
[1742050390675,0.26569628,598.56,597.62,0.934]
[1742050390876,0.26569628,598.55,597.62,0.934]
[1742050391074,0.26569628,598.54,597.62,0.934]
[1742050391276,0.26569628,598.53,597.62,0.934]
[1742050391476,0.26569628,598.65,597.62,0.934]
[1742050391776,0.26569628,598.64,597.63,1.709]
[1742050391978,0.26569628,598.65,597.63,1.709]
[1742050392182,2.52344887,598.66,597.63,1.709]
[1742050392375,2.52344887,598.61,597.63,1.709]
[1742050392577,0.26572342,598.6,597.63,1.709]
[1742050394580,6.83485424,598.81,597.63,1.709]
[1742050394885,2.4169158,598.8,597.63,1.709]
[1742050395083,0.26572342,598.79,597.64,0.186]
[1742050395280,0.26572342,598.78,597.64,0.186]
[1742050395583,0.26572342,598.77,597.64,0.186]
[1742050395984,0.26574922,598.76,597.64,0.186]
[1742050396180,0.26574922,598.75,597.64,0.186]
[1742050396379,0.26574922,598.74,597.64,0.186]
[1742050396581,0.26574922,598.73,597.64,0.186]
[1742050396777,0.26574922,598.72,597.64,0.186]
[1742050396979,0.26574922,598.71,597.64,0.186]
[1742050397184,0.26574922,598.7,597.64,0.186]
[1742050397385,0.26574922,598.69,597.65,1.349]
[1742050397880,0.26574922,598.68,597.65,1.349]
[1742050398083,0.26574922,598.67,597.65,1.349]
[1742050398285,0.26574922,598.82,597.65,1.349]
[1742050398482,0.26574922,598.81,597.65,1.349]
[1742050398784,0.26574922,598.8,597.65,1.349]
[1742050398980,0.26574922,598.79,597.65,1.349]
[1742050399179,0.26574922,598.78,597.65,1.349]
[1742050399384,0.26574922,598.77,597.65,1.349]
[1742050399584,0.26574922,598.76,597.65,1.349]
[1742050399785,0.26574465,598.75,597.65,1.349]
[1742050399984,0.26574465,598.74,597.65,1.349]
[1742050400189,0.26574465,598.73,597.65,1.349]
[1742050400390,0.26574465,598.72,597.65,1.349]
[1742050400591,0.26574465,598.71,597.65,1.349]
[1742050400792,0.26574465,598.7,597.65,1.349]
[1742050400996,0.26574465,598.82,597.65,1.349]
[1742050401194,0.26574465,598.81,597.65,1.349]